[Event "January 9 Late 2024"]
[Site "https://www.chess.com"]
[Date "2024.01.09"]
[Round "4"]
[White "Llorente Zaro, Alfonso"]
[Black "Grochal, Joey"]
[Result "1-0"]
[Board "88"]
[TimeControl "180+1"]
[WhiteFideId "2254131"]
[BlackFideId "1019945"]
[WhiteElo "2692"]
[BlackElo "2488"]
[WhiteTeam "ESP"]
[BlackTeam "NED"]
[WhiteClock "0:00:04"]
[BlackClock "0:00:22"]

1. e4 {[%clk 0:03:00]}  e5 {[%clk 0:02:56]} 2. Nf3 {[%clk 0:03:00]}  Nc6 {[%clk 0:02:56]} 3. Nc3 {[%clk 0:03:01]}  Nf6 {[%clk 0:02:56]} 4. h3 {[%clk 0:03:01]}  Bb4 {[%clk 0:02:55]} 5. Nd5 {[%clk 0:03:01]}  Ba5 {[%clk 0:02:51]} 6. c3 {[%clk 0:02:57]}  O-O {[%clk 0:02:49]} 7. d3 {[%clk 0:02:43]}  Nxd5 {[%clk 0:02:44]} 8. exd5 {[%clk 0:02:44]}  Nb8 {[%clk 0:02:44]} 9. Be2 {[%clk 0:02:37]}  d6 {[%clk 0:02:43]} 10. O-O {[%clk 0:02:29]}  c6 {[%clk 0:02:39]} 11. dxc6 {[%clk 0:02:07]}  Nxc6 {[%clk 0:02:40]} 12. Be3 {[%clk 0:02:05]}  h6 {[%clk 0:02:30]} 13. d4 {[%clk 0:02:00]}  e4 {[%clk 0:02:28]} 14. Nd2 {[%clk 0:02:01]}  f5 {[%clk 0:02:27]} 15. f4 {[%clk 0:01:53]}  Be6 {[%clk 0:02:23]} 16. Nxe4 {[%clk 0:01:45]}  fxe4 {[%clk 0:02:21]} 17. d5 {[%clk 0:01:44]}  Bd7 {[%clk 0:02:03]} 18. dxc6 {[%clk 0:01:43]}  Bxc6 {[%clk 0:02:04]} 19. Qd2 {[%clk 0:01:39]}  Qe7 {[%clk 0:01:55]} 20. Rad1 {[%clk 0:01:27]}  Rad8 {[%clk 0:01:54]} 21. Kh1 {[%clk 0:01:19]}  Bc7 {[%clk 0:01:45]} 22. c4 {[%clk 0:00:55]}  b6 {[%clk 0:01:43]} 23. Qc3 {[%clk 0:00:55]}  Bd7 {[%clk 0:01:33]} 24. b3 {[%clk 0:00:50]}  Qh4 {[%clk 0:01:28]} 25. Qe1 {[%clk 0:00:49]}  Qe7 {[%clk 0:01:22]} 26. Qg3 {[%clk 0:00:46]}  Bf5 {[%clk 0:01:21]} 27. Bg4 {[%clk 0:00:46]}  Qe6 {[%clk 0:01:17]} 28. Rd5 {[%clk 0:00:46]}  Bxg4 {[%clk 0:01:16]} 29. Qxg4 {[%clk 0:00:47]}  Qxg4 {[%clk 0:01:13]} 30. hxg4 {[%clk 0:00:48]}  Rde8 {[%clk 0:01:10]} 31. g3 {[%clk 0:00:47]}  Kf7 {[%clk 0:01:09]} 32. Kg2 {[%clk 0:00:46]}  Ke6 {[%clk 0:01:08]} 33. Rfd1 {[%clk 0:00:46]}  Kd7 {[%clk 0:01:07]} 34. Kf1 {[%clk 0:00:46]}  Kc6 {[%clk 0:01:08]} 35. Ke2 {[%clk 0:00:46]}  Rh8 {[%clk 0:01:05]} 36. Rh1 {[%clk 0:00:44]}  g6 {[%clk 0:01:03]} 37. Bd4 {[%clk 0:00:36]}  Rh7 {[%clk 0:01:03]} 38. a4 {[%clk 0:00:35]}  Ree7 {[%clk 0:00:56]} 39. Ke3 {[%clk 0:00:35]}  Bd8 {[%clk 0:00:51]} 40. Bc3 {[%clk 0:00:23]}  Bc7 {[%clk 0:00:51]} 41. Rd4 {[%clk 0:00:17]}  a6 {[%clk 0:00:49]} 42. Rxe4 {[%clk 0:00:17]}  Rxe4+ {[%clk 0:00:50]} 43. Kxe4 {[%clk 0:00:18]}  Kd7 {[%clk 0:00:51]} 44. Kd5 {[%clk 0:00:17]}  Bd8 {[%clk 0:00:51]} 45. Re1 {[%clk 0:00:16]}  Be7 {[%clk 0:00:52]} 46. Re6 {[%clk 0:00:16]}  h5 {[%clk 0:00:52]} 47. Rxg6 {[%clk 0:00:15]}  hxg4 {[%clk 0:00:52]} 48. Rg7 {[%clk 0:00:14]}  Rh6 {[%clk 0:00:45]} 49. f5 {[%clk 0:00:13]}  Ke8 {[%clk 0:00:45]} 50. Rxg4 {[%clk 0:00:13]}  Rh1 {[%clk 0:00:39]} 51. f6 {[%clk 0:00:12]}  Bf8 {[%clk 0:00:39]} 52. Re4+ {[%clk 0:00:09]}  Kf7 {[%clk 0:00:39]} 53. Re3 {[%clk 0:00:08]}  Rd1+ {[%clk 0:00:39]} 54. Bd4 {[%clk 0:00:08]}  Rf1 {[%clk 0:00:34]} 55. Kc6 {[%clk 0:00:07]}  Rd1 {[%clk 0:00:32]} 56. Re4 {[%clk 0:00:07]}  Bh6 {[%clk 0:00:30]} 57. Kxb6 {[%clk 0:00:06]}  Rd3 {[%clk 0:00:28]} 58. Kxa6 {[%clk 0:00:05]}  Rxb3 {[%clk 0:00:28]} 59. g4 {[%clk 0:00:05]}  Rb4 {[%clk 0:00:26]} 60. a5 {[%clk 0:00:04]}  Rxc4 {[%clk 0:00:26]} 61. Kb5 {[%clk 0:00:04]}  Rc1 {[%clk 0:00:26]} 62. a6 {[%clk 0:00:04]}  Rb1+ {[%clk 0:00:26]} 63. Kc6 {[%clk 0:00:04]}  Rc1+ {[%clk 0:00:25]} 64. Kd5 {[%clk 0:00:04]}  Rc2 {[%clk 0:00:23]} 65. a7 {[%clk 0:00:04]}  Ra2 {[%clk 0:00:23]} 66. Re7+ {[%clk 0:00:05]}  Kg6 {[%clk 0:00:24]} 67. f7 {[%clk 0:00:05]}  Ra6 {[%clk 0:00:22]} 68. Re8 {[%clk 0:00:04]}  Kxf7 {[%clk 0:00:22]} 69. a8=Q {[%clk 0:00:04]}  Ra7 {[%clk 0:00:22]} 70. Qxa7+ {[%clk 0:00:04]} 1-0

[Event "January 9 Late 2024"]
[Site "https://www.chess.com"]
[Date "2024.01.09"]
[Round "4"]
[White "Lund, Gunnar"]
[Black "Silva Lucena, Cristian"]
[Result "0-1"]
[Board "91"]
[TimeControl "180+1"]
[WhiteFideId "1520814"]
[BlackFideId "2232588"]
[WhiteElo "2680"]
[BlackElo "2485"]
[WhiteTeam "NOR"]
[BlackTeam "ESP"]
[WhiteClock "0:01:10"]
[BlackClock "0:01:16"]

1. d4 {[%clk 0:03:00]}  Nf6 {[%clk 0:02:57]} 2. c4 {[%clk 0:03:00]}  g6 {[%clk 0:02:57]} 3. Nc3 {[%clk 0:03:00]}  d5 {[%clk 0:02:57]} 4. Nf3 {[%clk 0:03:00]}  Bg7 {[%clk 0:02:57]} 5. Qb3 {[%clk 0:03:00]}  dxc4 {[%clk 0:02:56]} 6. Qxc4 {[%clk 0:03:00]}  O-O {[%clk 0:02:56]} 7. e4 {[%clk 0:03:00]}  a6 {[%clk 0:02:54]} 8. Be2 {[%clk 0:02:53]}  b5 {[%clk 0:02:53]} 9. Qb3 {[%clk 0:02:53]}  Nc6 {[%clk 0:02:52]} 10. d5 {[%clk 0:02:15]}  Na5 {[%clk 0:02:43]} 11. Qc2 {[%clk 0:02:15]}  c6 {[%clk 0:02:36]} 12. Bd2 {[%clk 0:02:04]}  cxd5 {[%clk 0:02:34]} 13. Nxd5 {[%clk 0:02:04]}  Nxd5 {[%clk 0:02:33]} 14. exd5 {[%clk 0:02:05]}  Bf5 {[%clk 0:02:33]} 15. Qd1 {[%clk 0:01:54]}  Nc4 {[%clk 0:02:25]} 16. Bc3 {[%clk 0:01:30]}  Nxb2 {[%clk 0:02:24]} 17. Qd2 {[%clk 0:01:29]}  Bxc3 {[%clk 0:02:22]} 18. Qxc3 {[%clk 0:01:30]}  Na4 {[%clk 0:02:21]} 19. Qd4 {[%clk 0:01:29]}  Qa5+ {[%clk 0:02:15]} 20. Qd2 {[%clk 0:01:27]}  Qxd2+ {[%clk 0:02:11]} 21. Nxd2 {[%clk 0:01:26]}  Nc3 {[%clk 0:02:11]} 22. Bf3 {[%clk 0:01:23]}  Rad8 {[%clk 0:02:11]} 23. O-O {[%clk 0:01:24]}  Nxd5 {[%clk 0:02:11]} 24. a4 {[%clk 0:01:24]}  b4 {[%clk 0:02:08]} 25. Nc4 {[%clk 0:01:23]}  Bd3 {[%clk 0:01:54]} 26. Rfc1 {[%clk 0:01:22]}  Nc3 {[%clk 0:01:45]} 27. Ne5 {[%clk 0:01:19]}  Rd6 {[%clk 0:01:15]} 28. Nc6 {[%clk 0:01:14]}  Rxc6 {[%clk 0:01:15]} 29. Bxc6 {[%clk 0:01:13]}  Ne2+ {[%clk 0:01:16]} 30. Kh1 {[%clk 0:01:13]}  Nxc1 {[%clk 0:01:16]} 31. Rxc1 {[%clk 0:01:14]}  b3 {[%clk 0:01:17]} 32. Rc3 {[%clk 0:01:10]}  b2 {[%clk 0:01:16]} 0-1

[Event "January 9 Late 2024"]
[Site "https://www.chess.com"]
[Date "2024.01.09"]
[Round "4"]
[White "Shohat, Yotam"]
[Black "Annaberdiyev, Meylis"]
[Result "1/2-1/2"]
[Board "93"]
[TimeControl "180+1"]
[WhiteFideId "2813955"]
[BlackFideId "14000563"]
[WhiteElo "2483"]
[BlackElo "2676"]
[WhiteTeam "ISR"]
[BlackTeam "TKM"]
[WhiteClock "0:00:11"]
[BlackClock "0:00:09"]

1. e4 {[%clk 0:02:57]}  c5 {[%clk 0:02:59]} 2. Nf3 {[%clk 0:02:57]}  Nc6 {[%clk 0:03:00]} 3. Bb5 {[%clk 0:02:56]}  g6 {[%clk 0:02:56]} 4. c3 {[%clk 0:02:55]}  Bg7 {[%clk 0:02:53]} 5. O-O {[%clk 0:02:56]}  Nf6 {[%clk 0:02:52]} 6. d4 {[%clk 0:02:56]}  cxd4 {[%clk 0:02:47]} 7. cxd4 {[%clk 0:02:57]}  d5 {[%clk 0:02:19]} 8. e5 {[%clk 0:02:57]}  Ne4 {[%clk 0:02:19]} 9. Nfd2 {[%clk 0:02:57]}  O-O {[%clk 0:01:59]} 10. Nxe4 {[%clk 0:02:52]}  dxe4 {[%clk 0:02:00]} 11. Bxc6 {[%clk 0:02:52]}  bxc6 {[%clk 0:02:00]} 12. Nc3 {[%clk 0:02:52]}  c5 {[%clk 0:01:59]} 13. Be3 {[%clk 0:02:39]}  Ba6 {[%clk 0:01:45]} 14. Re1 {[%clk 0:02:38]}  Bd3 {[%clk 0:01:45]} 15. dxc5 {[%clk 0:02:25]}  Bxe5 {[%clk 0:01:45]} 16. Qd2 {[%clk 0:02:21]}  Qc7 {[%clk 0:01:31]} 17. f4 {[%clk 0:02:18]}  Bg7 {[%clk 0:01:24]} 18. b4 {[%clk 0:02:08]}  Rad8 {[%clk 0:01:16]} 19. Rac1 {[%clk 0:02:02]}  e5 {[%clk 0:00:58]} 20. Qf2 {[%clk 0:02:00]}  f5 {[%clk 0:00:52]} 21. a4 {[%clk 0:01:43]}  g5 {[%clk 0:00:52]} 22. g3 {[%clk 0:01:40]}  Kh8 {[%clk 0:00:40]} 23. Red1 {[%clk 0:01:21]}  exf4 {[%clk 0:00:31]} 24. gxf4 {[%clk 0:01:19]}  Rg8 {[%clk 0:00:19]} 25. fxg5 {[%clk 0:01:15]}  Be5 {[%clk 0:00:17]} 26. Nb5 {[%clk 0:00:54]}  Qf7 {[%clk 0:00:14]} 27. Bf4 {[%clk 0:00:44]}  h6 {[%clk 0:00:11]} 28. Bxe5+ {[%clk 0:00:43]}  Kh7 {[%clk 0:00:11]} 29. Bf4 {[%clk 0:00:25]}  Qh5 {[%clk 0:00:10]} 30. Be3 {[%clk 0:00:21]}  f4 {[%clk 0:00:09]} 31. Qxf4 {[%clk 0:00:19]}  Rdf8 {[%clk 0:00:09]} 32. Qg3 {[%clk 0:00:16]}  Rf3 {[%clk 0:00:09]} 33. Qc7+ {[%clk 0:00:16]}  Rg7 {[%clk 0:00:09]} 34. Qe5 {[%clk 0:00:15]}  Rxe3 {[%clk 0:00:09]} 35. Qf5+ {[%clk 0:00:14]}  Rg6 {[%clk 0:00:08]} 36. Qf7+ {[%clk 0:00:14]}  Kh8 {[%clk 0:00:08]} 37. Qe8+ {[%clk 0:00:13]}  Kh7 {[%clk 0:00:08]} 38. Qf7+ {[%clk 0:00:13]}  Kh8 {[%clk 0:00:09]} 39. Qe8+ {[%clk 0:00:12]}  Kh7 {[%clk 0:00:09]} 40. Qf7+ {[%clk 0:00:11]} 1/2-1/2

[Event "January 9 Late 2024"]
[Site "https://www.chess.com"]
[Date "2024.01.09"]
[Round "4"]
[White "Ozates, Tuna"]
[Black "Li, Tedric"]
[Result "0-1"]
[Board "95"]
[TimeControl "180+1"]
[WhiteFideId "6354521"]
[BlackFideId "3242897"]
[WhiteElo "2674"]
[BlackElo "2466"]
[WhiteTeam "TUR"]
[BlackTeam "AUS"]
[WhiteClock "0:00:04"]
[BlackClock "0:00:09"]

1. e4 {[%clk 0:03:00]}  c6 {[%clk 0:02:59]} 2. d4 {[%clk 0:02:57]}  d5 {[%clk 0:03:00]} 3. e5 {[%clk 0:02:57]}  Bf5 {[%clk 0:02:58]} 4. Nf3 {[%clk 0:02:55]}  e6 {[%clk 0:02:58]} 5. Be2 {[%clk 0:02:56]}  Nd7 {[%clk 0:02:58]} 6. O-O {[%clk 0:02:55]}  Bg6 {[%clk 0:02:58]} 7. Nbd2 {[%clk 0:02:55]}  Nh6 {[%clk 0:02:58]} 8. Nb3 {[%clk 0:02:55]}  Nf5 {[%clk 0:02:59]} 9. c3 {[%clk 0:02:55]}  Be7 {[%clk 0:02:59]} 10. a4 {[%clk 0:02:46]}  O-O {[%clk 0:02:57]} 11. a5 {[%clk 0:02:46]}  a6 {[%clk 0:02:57]} 12. g4 {[%clk 0:02:43]}  Nh4 {[%clk 0:02:57]} 13. Nxh4 {[%clk 0:02:44]}  Bxh4 {[%clk 0:02:58]} 14. f4 {[%clk 0:02:44]}  f5 {[%clk 0:02:58]} 15. g5 {[%clk 0:02:32]}  h6 {[%clk 0:02:50]} 16. gxh6 {[%clk 0:02:31]}  gxh6 {[%clk 0:02:48]} 17. Kh1 {[%clk 0:02:31]}  Kh7 {[%clk 0:02:47]} 18. Rg1 {[%clk 0:02:32]}  Rg8 {[%clk 0:02:47]} 19. Be3 {[%clk 0:02:32]}  Bf7 {[%clk 0:02:41]} 20. Qd2 {[%clk 0:02:19]}  Qe7 {[%clk 0:02:39]} 21. Bf3 {[%clk 0:02:17]}  Raf8 {[%clk 0:02:25]} 22. Rxg8 {[%clk 0:02:10]}  Rxg8 {[%clk 0:02:25]} 23. Ra4 {[%clk 0:02:10]}  Qe8 {[%clk 0:02:20]} 24. Rb4 {[%clk 0:02:05]}  Bh5 {[%clk 0:02:12]} 25. Bg2 {[%clk 0:02:05]}  Qc8 {[%clk 0:02:04]} 26. c4 {[%clk 0:01:55]}  Be7 {[%clk 0:01:56]} 27. c5 {[%clk 0:01:51]}  Nf8 {[%clk 0:01:50]} 28. Nc1 {[%clk 0:01:48]}  Ng6 {[%clk 0:01:47]} 29. Bf2 {[%clk 0:01:38]}  Bh4 {[%clk 0:01:45]} 30. Nd3 {[%clk 0:01:32]}  Rg7 {[%clk 0:01:44]} 31. Bg3 {[%clk 0:01:24]}  Qd8 {[%clk 0:01:36]} 32. Rb6 {[%clk 0:01:19]}  Qe8 {[%clk 0:01:24]} 33. Qb4 {[%clk 0:01:12]}  Qc8 {[%clk 0:01:20]} 34. Qb3 {[%clk 0:01:11]}  Bd8 {[%clk 0:01:14]} 35. Kg1 {[%clk 0:00:32]}  Bxb6 {[%clk 0:01:13]} 36. cxb6 {[%clk 0:00:31]}  Nf8 {[%clk 0:00:50]} 37. Qb4 {[%clk 0:00:25]}  Qd8 {[%clk 0:00:45]} 38. Kf2 {[%clk 0:00:24]}  Qe7 {[%clk 0:00:45]} 39. Nc5 {[%clk 0:00:16]}  Nd7 {[%clk 0:00:42]} 40. Ke3 {[%clk 0:00:07]}  Nxc5 {[%clk 0:00:42]} 41. Qxc5 {[%clk 0:00:05]}  Qxc5 {[%clk 0:00:30]} 42. dxc5 {[%clk 0:00:06]}  d4+ {[%clk 0:00:31]} 43. Kxd4 {[%clk 0:00:06]}  Rd7+ {[%clk 0:00:31]} 44. Kc3 {[%clk 0:00:05]}  Rd1 {[%clk 0:00:30]} 45. Bh4 {[%clk 0:00:03]}  Rg1 {[%clk 0:00:26]} 46. Bxc6 {[%clk 0:00:02]}  bxc6 {[%clk 0:00:20]} 47. Be7 {[%clk 0:00:02]}  Rg8 {[%clk 0:00:14]} 48. Bd6 {[%clk 0:00:03]}  Bf3 {[%clk 0:00:11]} 49. b4 {[%clk 0:00:03]}  Kg6 {[%clk 0:00:09]} 50. b7 {[%clk 0:00:02]}  Kh5 {[%clk 0:00:08]} 51. Kd4 {[%clk 0:00:02]}  Kg4 {[%clk 0:00:08]} 52. Ke3 {[%clk 0:00:03]}  Bd5 {[%clk 0:00:08]} 53. b8=Q {[%clk 0:00:03]}  Rxb8 {[%clk 0:00:08]} 54. Bxb8 {[%clk 0:00:04]}  Kh3 {[%clk 0:00:09]} 55. Bd6 {[%clk 0:00:04]}  Kxh2 {[%clk 0:00:09]} 56. Be7 {[%clk 0:00:04]}  Kh3 {[%clk 0:00:09]} 57. Kf2 {[%clk 0:00:01]}  Kg4 {[%clk 0:00:08]} 58. Ke3 {[%clk 0:00:02]}  h5 {[%clk 0:00:09]} 59. Kd4 {[%clk 0:00:01]}  Kxf4 {[%clk 0:00:09]} 60. b5 {[%clk 0:00:02]}  cxb5 {[%clk 0:00:09]} 61. c6 {[%clk 0:00:02]}  Bxc6 {[%clk 0:00:09]} 62. Kc5 {[%clk 0:00:03]}  Bd5 {[%clk 0:00:10]} 63. Kb6 {[%clk 0:00:03]}  b4 {[%clk 0:00:08]} 64. Bxb4 {[%clk 0:00:03]}  Bc4 {[%clk 0:00:08]} 65. Be1 {[%clk 0:00:03]}  Kxe5 {[%clk 0:00:08]} 66. Kc5 {[%clk 0:00:03]}  Bb5 {[%clk 0:00:08]} 67. Kb4 {[%clk 0:00:04]}  Kf4 {[%clk 0:00:08]} 68. Kc3 {[%clk 0:00:05]}  Kf3 {[%clk 0:00:08]} 69. Kd4 {[%clk 0:00:05]}  Kf4 {[%clk 0:00:07]} 70. Bd2+ {[%clk 0:00:05]}  Kg4 {[%clk 0:00:08]} 71. Ke5 {[%clk 0:00:06]}  h4 {[%clk 0:00:08]} 72. Kxe6 {[%clk 0:00:04]}  h3 {[%clk 0:00:09]} 0-1

[Event "January 9 Late 2024"]
[Site "https://www.chess.com"]
[Date "2024.01.09"]
[Round "4"]
[White "Baziuk, Vladyslav"]
[Black "Sliwicki, Damian"]
[Result "1-0"]
[Board "96"]
[TimeControl "180+1"]
[WhiteFideId "34107940"]
[BlackFideId "1127128"]
[WhiteElo "2673"]
[BlackElo "2455"]
[WhiteTeam "UKR"]
[BlackTeam "POL"]
[WhiteClock "0:00:33"]
[BlackClock "0:00:10"]

1. e4 {[%clk 0:03:00]}  c5 {[%clk 0:02:59]} 2. Nf3 {[%clk 0:03:01]}  g6 {[%clk 0:02:59]} 3. d4 {[%clk 0:03:01]}  cxd4 {[%clk 0:03:00]} 4. Nxd4 {[%clk 0:03:02]}  Nc6 {[%clk 0:02:57]} 5. Nc3 {[%clk 0:02:59]}  Bg7 {[%clk 0:02:57]} 6. Be3 {[%clk 0:03:00]}  Nf6 {[%clk 0:02:57]} 7. f3 {[%clk 0:02:59]}  O-O {[%clk 0:02:56]} 8. Bc4 {[%clk 0:02:59]}  Qb6 {[%clk 0:02:56]} 9. Bb3 {[%clk 0:02:59]}  Nxe4 {[%clk 0:02:55]} 10. Nd5 {[%clk 0:02:59]}  Qa5+ {[%clk 0:02:55]} 11. c3 {[%clk 0:03:00]}  Nd6 {[%clk 0:02:51]} 12. Nxc6 {[%clk 0:02:56]}  dxc6 {[%clk 0:02:39]} 13. Nxe7+ {[%clk 0:02:56]}  Kh8 {[%clk 0:02:39]} 14. Qxd6 {[%clk 0:02:56]}  Be6 {[%clk 0:02:17]} 15. Bxe6 {[%clk 0:02:43]}  fxe6 {[%clk 0:02:18]} 16. O-O {[%clk 0:02:26]}  Rad8 {[%clk 0:02:06]} 17. Qc5 {[%clk 0:02:14]}  Qc7 {[%clk 0:02:06]} 18. Bg5 {[%clk 0:02:05]}  Rd7 {[%clk 0:01:56]} 19. Rad1 {[%clk 0:02:03]}  Re8 {[%clk 0:01:41]} 20. Rxd7 {[%clk 0:01:52]}  Qxd7 {[%clk 0:01:42]} 21. Qxa7 {[%clk 0:01:50]}  h6 {[%clk 0:01:32]} 22. Nxg6+ {[%clk 0:01:39]}  Kh7 {[%clk 0:01:31]} 23. Bxh6 {[%clk 0:01:26]}  Bxh6 {[%clk 0:01:21]} 24. Ne5 {[%clk 0:01:22]}  Qg7 {[%clk 0:01:16]} 25. Ng4 {[%clk 0:01:19]}  Bf4 {[%clk 0:01:09]} 26. Qd4 {[%clk 0:01:15]}  Qxd4+ {[%clk 0:00:57]} 27. cxd4 {[%clk 0:01:16]}  Rd8 {[%clk 0:00:58]} 28. g3 {[%clk 0:01:07]}  Bg5 {[%clk 0:00:58]} 29. f4 {[%clk 0:01:04]}  Be7 {[%clk 0:00:58]} 30. Re1 {[%clk 0:01:03]}  Rxd4 {[%clk 0:00:55]} 31. Rxe6 {[%clk 0:01:02]}  Bc5 {[%clk 0:00:55]} 32. Kf1 {[%clk 0:00:53]}  Rd2 {[%clk 0:00:52]} 33. Re2 {[%clk 0:00:53]}  Rd1+ {[%clk 0:00:48]} 34. Kg2 {[%clk 0:00:53]}  Kg6 {[%clk 0:00:49]} 35. Ne5+ {[%clk 0:00:52]}  Kf5 {[%clk 0:00:50]} 36. h4 {[%clk 0:00:45]}  Rg1+ {[%clk 0:00:48]} 37. Kh3 {[%clk 0:00:45]}  Rh1+ {[%clk 0:00:47]} 38. Rh2 {[%clk 0:00:43]}  Ra1 {[%clk 0:00:45]} 39. a3 {[%clk 0:00:42]}  Bd4 {[%clk 0:00:41]} 40. h5 {[%clk 0:00:40]}  Re1 {[%clk 0:00:30]} 41. Nf3 {[%clk 0:00:36]}  Re4 {[%clk 0:00:29]} 42. Nxd4+ {[%clk 0:00:36]}  Rxd4 {[%clk 0:00:30]} 43. Re2 {[%clk 0:00:34]}  Rd1 {[%clk 0:00:29]} 44. Re5+ {[%clk 0:00:34]}  Kf6 {[%clk 0:00:29]} 45. Kg4 {[%clk 0:00:34]}  Rd2 {[%clk 0:00:28]} 46. b4 {[%clk 0:00:34]}  Rd3 {[%clk 0:00:26]} 47. b5 {[%clk 0:00:34]}  Rxa3 {[%clk 0:00:26]} 48. bxc6 {[%clk 0:00:34]}  bxc6 {[%clk 0:00:27]} 49. Rc5 {[%clk 0:00:34]}  Ra6 {[%clk 0:00:26]} 50. Rg5 {[%clk 0:00:31]}  Kf7 {[%clk 0:00:19]} 51. Rg6 {[%clk 0:00:32]}  Rb6 {[%clk 0:00:17]} 52. f5 {[%clk 0:00:32]}  Rb4+ {[%clk 0:00:17]} 53. Kg5 {[%clk 0:00:32]}  c5 {[%clk 0:00:18]} 54. g4 {[%clk 0:00:32]}  Rc4 {[%clk 0:00:13]} 55. Rc6 {[%clk 0:00:32]}  Rc1 {[%clk 0:00:13]} 56. h6 {[%clk 0:00:32]}  c4 {[%clk 0:00:11]} 57. h7 {[%clk 0:00:32]}  Kg7 {[%clk 0:00:12]} 58. Rc7+ {[%clk 0:00:33]}  Kh8 {[%clk 0:00:13]} 59. Kg6 {[%clk 0:00:33]}  Rh1 {[%clk 0:00:10]} 60. Rc8# {[%clk 0:00:33]} 1-0

[Event "January 9 Late 2024"]
[Site "https://www.chess.com"]
[Date "2024.01.09"]
[Round "4"]
[White "Jarocka, Liwia"]
[Black "Rosen, Eric"]
[Result "0-1"]
[Board "98"]
[TimeControl "180+1"]
[WhiteFideId "21807558"]
[BlackFideId "2032562"]
[WhiteElo "2421"]
[BlackElo "2669"]
[WhiteTeam "POL"]
[BlackTeam "USA"]
[WhiteClock "0:00:00"]
[BlackClock "0:00:34"]

1. e4 {[%clk 0:03:00]}  c5 {[%clk 0:03:00]} 2. Nf3 {[%clk 0:02:58]}  e6 {[%clk 0:03:00]} 3. c3 {[%clk 0:02:56]}  d5 {[%clk 0:03:00]} 4. exd5 {[%clk 0:02:56]}  Qxd5 {[%clk 0:03:01]} 5. d4 {[%clk 0:02:56]}  Nf6 {[%clk 0:03:02]} 6. Na3 {[%clk 0:02:53]}  Nc6 {[%clk 0:03:02]} 7. Nb5 {[%clk 0:02:53]}  Qd8 {[%clk 0:03:02]} 8. dxc5 {[%clk 0:02:42]}  Bxc5 {[%clk 0:03:03]} 9. Qxd8+ {[%clk 0:02:41]}  Kxd8 {[%clk 0:03:04]} 10. Bf4 {[%clk 0:02:38]}  Ne4 {[%clk 0:03:02]} 11. Bg3 {[%clk 0:01:48]}  a6 {[%clk 0:02:54]} 12. O-O-O+ {[%clk 0:01:44]}  Ke7 {[%clk 0:02:50]} 13. Nbd4 {[%clk 0:01:42]}  Nxd4 {[%clk 0:02:29]} 14. Nxd4 {[%clk 0:01:34]}  Bd7 {[%clk 0:02:29]} 15. f3 {[%clk 0:01:19]}  Nxg3 {[%clk 0:02:25]} 16. hxg3 {[%clk 0:01:20]}  h6 {[%clk 0:02:23]} 17. Kb1 {[%clk 0:01:19]}  b5 {[%clk 0:02:06]} 18. g4 {[%clk 0:01:18]}  Rhc8 {[%clk 0:02:03]} 19. Be2 {[%clk 0:01:11]}  b4 {[%clk 0:01:51]} 20. cxb4 {[%clk 0:01:09]}  Bxb4 {[%clk 0:01:50]} 21. Nc2 {[%clk 0:00:56]}  Bc5 {[%clk 0:01:45]} 22. Bd3 {[%clk 0:00:56]}  a5 {[%clk 0:01:40]} 23. Rhe1 {[%clk 0:00:55]}  Rab8 {[%clk 0:01:34]} 24. Ne3 {[%clk 0:00:40]}  a4 {[%clk 0:01:17]} 25. Bc2 {[%clk 0:00:21]}  Bc6 {[%clk 0:01:04]} 26. Nf5+ {[%clk 0:00:19]}  Kf8 {[%clk 0:01:03]} 27. Nd6 {[%clk 0:00:19]}  Rc7 {[%clk 0:00:58]} 28. Ne4 {[%clk 0:00:19]}  Ba3 {[%clk 0:00:53]} 29. b3 {[%clk 0:00:19]}  Bd5 {[%clk 0:00:52]} 30. Rd3 {[%clk 0:00:14]}  Rbc8 {[%clk 0:00:46]} 31. Re2 {[%clk 0:00:07]}  Rb8 {[%clk 0:00:38]} 32. Nc3 {[%clk 0:00:00]}  Bc4 {[%clk 0:00:34]} 0-1

[Event "January 9 Late 2024"]
[Site "https://www.chess.com"]
[Date "2024.01.09"]
[Round "4"]
[White "Kleiman, Jake"]
[Black "Atanejhad, Sahebali"]
[Result "1-0"]
[Board "99"]
[TimeControl "180+1"]
[WhiteFideId "2020041"]
[BlackFideId "12506664"]
[WhiteElo "2669"]
[BlackElo "2411"]
[WhiteTeam "USA"]
[BlackTeam "IRI"]
[WhiteClock "0:00:19"]
[BlackClock "0:00:15"]

1. e4 {[%clk 0:03:00]}  e5 {[%clk 0:02:58]} 2. Nf3 {[%clk 0:03:00]}  Nc6 {[%clk 0:02:57]} 3. Bc4 {[%clk 0:03:01]}  Bc5 {[%clk 0:02:55]} 4. d3 {[%clk 0:03:02]}  d6 {[%clk 0:02:53]} 5. c3 {[%clk 0:03:02]}  Nf6 {[%clk 0:02:52]} 6. O-O {[%clk 0:03:02]}  a5 {[%clk 0:02:51]} 7. Bb3 {[%clk 0:03:02]}  h6 {[%clk 0:02:50]} 8. Nbd2 {[%clk 0:03:01]}  O-O {[%clk 0:02:49]} 9. h3 {[%clk 0:03:01]}  Be6 {[%clk 0:02:49]} 10. Bc2 {[%clk 0:03:01]}  Re8 {[%clk 0:02:47]} 11. Re1 {[%clk 0:02:59]}  Ba7 {[%clk 0:02:44]} 12. Nf1 {[%clk 0:02:59]}  Ne7 {[%clk 0:02:41]} 13. Ng3 {[%clk 0:02:57]}  Ng6 {[%clk 0:02:41]} 14. d4 {[%clk 0:02:58]}  exd4 {[%clk 0:02:33]} 15. Nxd4 {[%clk 0:02:48]}  Bd7 {[%clk 0:02:12]} 16. Kh1 {[%clk 0:02:37]}  c6 {[%clk 0:02:11]} 17. f4 {[%clk 0:02:20]}  Nh4 {[%clk 0:01:55]} 18. Be3 {[%clk 0:02:11]}  Qc8 {[%clk 0:01:49]} 19. Kh2 {[%clk 0:02:11]}  Bb8 {[%clk 0:01:47]} 20. Bf2 {[%clk 0:01:52]}  Nxg2 {[%clk 0:01:45]} 21. Kxg2 {[%clk 0:01:50]}  Bxh3+ {[%clk 0:01:45]} 22. Kg1 {[%clk 0:01:50]}  Bg4 {[%clk 0:01:41]} 23. Qd3 {[%clk 0:01:45]}  c5 {[%clk 0:01:35]} 24. Ndf5 {[%clk 0:01:36]}  c4 {[%clk 0:01:21]} 25. Qd2 {[%clk 0:01:31]}  d5 {[%clk 0:01:15]} 26. e5 {[%clk 0:01:28]}  Ne4 {[%clk 0:01:15]} 27. Nxe4 {[%clk 0:01:21]}  dxe4 {[%clk 0:01:09]} 28. Ng3 {[%clk 0:01:16]}  f5 {[%clk 0:00:42]} 29. exf6 {[%clk 0:01:11]}  Bf3 {[%clk 0:00:42]} 30. Qd5+ {[%clk 0:00:48]}  Kh7 {[%clk 0:00:31]} 31. Re3 {[%clk 0:00:30]}  Qg4 {[%clk 0:00:20]} 32. Rxf3 {[%clk 0:00:27]}  Qxf3 {[%clk 0:00:21]} 33. Bxe4+ {[%clk 0:00:27]}  Rxe4 {[%clk 0:00:21]} 34. Qxe4+ {[%clk 0:00:28]}  Qxe4 {[%clk 0:00:21]} 35. Nxe4 {[%clk 0:00:29]}  Bxf4 {[%clk 0:00:20]} 36. fxg7 {[%clk 0:00:28]}  Kxg7 {[%clk 0:00:21]} 37. Bd4+ {[%clk 0:00:27]}  Kg6 {[%clk 0:00:21]} 38. Kf2 {[%clk 0:00:26]}  Kf5 {[%clk 0:00:20]} 39. Kf3 {[%clk 0:00:25]}  Rg8 {[%clk 0:00:19]} 40. Rh1 {[%clk 0:00:24]}  Bg5 {[%clk 0:00:19]} 41. Nxg5 {[%clk 0:00:21]}  hxg5 {[%clk 0:00:20]} 42. Rh7 {[%clk 0:00:18]}  g4+ {[%clk 0:00:20]} 43. Kg3 {[%clk 0:00:19]}  b5 {[%clk 0:00:18]} 44. Rh5+ {[%clk 0:00:18]}  Ke4 {[%clk 0:00:18]} 45. Rxb5 {[%clk 0:00:18]}  Kd3 {[%clk 0:00:19]} 46. Rxa5 {[%clk 0:00:18]}  Kc2 {[%clk 0:00:19]} 47. Rb5 {[%clk 0:00:18]}  Kd3 {[%clk 0:00:18]} 48. a4 {[%clk 0:00:18]}  Ra8 {[%clk 0:00:18]} 49. a5 {[%clk 0:00:18]}  Kc2 {[%clk 0:00:18]} 50. Kxg4 {[%clk 0:00:18]}  Ra6 {[%clk 0:00:18]} 51. Kf5 {[%clk 0:00:18]}  Kd3 {[%clk 0:00:19]} 52. Ke5 {[%clk 0:00:18]}  Kc2 {[%clk 0:00:19]} 53. Kd5 {[%clk 0:00:18]}  Kd3 {[%clk 0:00:20]} 54. Kc5 {[%clk 0:00:18]}  Ra8 {[%clk 0:00:21]} 55. Kc6 {[%clk 0:00:17]}  Rc8+ {[%clk 0:00:21]} 56. Kb7 {[%clk 0:00:18]}  Rf8 {[%clk 0:00:20]} 57. a6 {[%clk 0:00:18]}  Rf7+ {[%clk 0:00:20]} 58. Kb6 {[%clk 0:00:19]}  Re7 {[%clk 0:00:20]} 59. a7 {[%clk 0:00:19]}  Re6+ {[%clk 0:00:21]} 60. Ka5 {[%clk 0:00:19]}  Re8 {[%clk 0:00:15]} 61. Rb8 {[%clk 0:00:19]} 1-0